Workbook

Sheet Título

Sheet BH&Rega
A1: Balanço Hídrico Sequencial (BHS) para controle da rega | W1: Intervalo: | X1: =IF(B17="Mensal",30, IF(B17="10 dias",10,IF(B17="5 dias",5,IF(B17="3 dias",3,1)))) -> 1 | AZ1: Crit. Rega: | BA1: =IF(B15="Sem stress",1,IF(B15="MAD/AFD fixa",2,3)) -> 1
A2: O 1º intervalo que entra na linha 21 tem de ser obrigatoriamente antecedido por um período húmido de molde a garantir que o armazenamento de água é máximo (A = U).
A3: Note que pode começar muito antes do intervalo que pretende analisar, para garantir que satisfaz a condição anterior.
A4: Obrigatório preencher só as células a verde e as colunas encimadas com células de rótulo verde, até que tenha dados! É facultatico preencher as células a azul.
A5: Este programa pode ser utilizado quando já temos dados de todos os dias do intervalo, ou sequencialmente, à medida que temos os dados. Neste caso para calendarização da rega.
A6: Para calendarização da rega, note que caso haja previsão de precipitação, deve colocá-la no intervalo seguinte, junto com uma estimativa da ETc. Assim, pode prever se tem de iniciar a rega no início do intervalo seguinte ou não.
A7: Não se esqueça de selecionar o intervalo entre medições consecutivas (10 dias, 5 dias, 3 dias ou 1 dia)
A9: Cultura: | B9: Milho | E9: Estação: | F9: Évora
C10: Graus | D10: Minutos | E10: Segundos | I10: Graus | J10: Minutos | K10: Segundos | R10: Balanço Hídrico (mm)
B11: Latitude: | C11: 38 | D11: 30 | E11: 0 | F11: Norte | H11: Long.: | I11: 7 | J11: 50 | K11: 0 | L11: Oeste | N11: Alt.: | O11: 50 | P11: m | R11: DeltArm | S11: =H21-LOOKUP(2,1/(I:I<>""),I:I) -> 0
D12: Período dos dados: | R12: ET | S12: =SUM(E21:E4002) -> 731.8274336
A13: U | B13: 110 | C13: mm | E13: Parâmetro p (tabelado): | G13: 0.55 | I13: Valor de p utilizado: | K13: =IF(COUNTIF($D$21:$D$4002,">0.8")<5,G13,MIN(MAX(0.1,G13+0.04*(5-AVERAGEIF($D$21:$D$4002,">0.8",$E$21:$E$4002)/$X$1)),0.8)) -> 0.5056886791 | M13: AFD: | N13: =K13*B13 -> 55.6257547 | O13: mm | R13: Prec | S13: =SUM(F21:F4002) -> 517.652
R14: Rega | S14: =SUM(J21:J4002) -> 572.8321423
A15: Critério como Regar: | B15: Sem stress | G15: Eficiência da rega: | H15: 0.85 | R15: Drenagem | S15: =SUM(V21:V4002) -> 358.6567087
R16: Balanço | S16: =S11+S13+S14-S15-S12 -> 0
A17: Intervalo: | B17: 1 dia | D17: Data inicial: | E17: 2018-01-01 | G17: Data final: | H17: 2018-12-31
A19: Ano | B19: Intervalo | C19: ETo | D19: Kc | E19: ETc | F19: P | G19: I+P-ETc | H19: AFDi | I19: AFDf | J19: Rega líquida (I) | K19: Rega bruta (I) | V19: Drenagem profunda
C20: [mm] | F20: [mm] | G20: [mm] | H20: [mm] | I20: [mm] | J20: [mm] | K20: [mm] | V20: [mm] | BA20: DiaInicioIntervalo | BB20: DiaFimIntervalo
A21: =YEAR(E17) -> 2018 | B21: =IF(A21="","",TEXT(BA21,"d/mm")&"-"&TEXT(BB21,"d/mm")) -> 1/01-1/01 | C21: 0.7256227624 | D21: 0 | E21: =IF(OR(A21="", C21="",D21=""),"",C21*D21) -> 0 | F21: 0.254 | G21: =IF(OR(A21="", C21="",D21="",F21=""),"",F21-E21) -> 0.254 | H21: =IF(G21="","",$B$13*$K$13) -> 55.6257547 | I21: =IF(G21="","",MAX(0,MIN($K$13*$B$13,H21+G21))) -> 55.6257547 | J21: 0 | K21: =IF(OR(A21="",G21=""),"",J21/$H$15) -> 0 | V21: =IF(OR(A21="",J21=""),"",IF(AND(F21=0,J21=0),0,MAX(I21+G21-$N$13,0))) -> 0.254 | BA21: =E17 -> 2018-01-01 | BB21: =IF(BA21="","",BA21+$X$1-1) -> 2018-01-01
A22: =IF(BA22="","",YEAR(BB22)) -> 2018 | B22: =IF(A22="","",TEXT(BA22,"d/mm")&"-"&TEXT(BB22,"d/mm")) -> 2/01-2/01 | C22: 0.7397694786 | D22: 0 | E22: =IF(OR(A22="", C22="",D22="",E21=""),"",C22*D22) -> 0 | F22: 0 | G22: =IF(OR(A22="", C22="",D22="",F22="",G21=""),"",J22+F22-E22) -> 0 | H22: =IF(G22="","",MAX(I21,0)) -> 55.6257547 | I22: =IF(G22="","",MAX(MIN($K$13*$B$13,H22+G22),0)) -> 55.6257547 | J22: =IF(OR($A22="",$C22="",$D22="",$F22="",$J21=""),"",IF($I21+$F22-$E22<=0,$K$13*$B$13-$I21,0)) -> 0 | K22: =IF(OR(A22="",G22=""),"",J22/$H$15) -> 0 | V22: =IF(OR(A22="",J22=""),"",IF(AND(F22=0,J22=0),0,MAX(I21+G22-$N$13,0))) -> 0 | BA22: =IF(BB21<$H$17,BB21+1,"") -> 2018-01-02 | BB22: =IF(BA22="","",BA22+$X$1-1) -> 2018-01-02
A23: =IF(BA23="","",YEAR(BB23)) -> 2018 | B23: 3/01-3/01 | C23: 0.8381139337 | D23: 0 | E23: =IF(OR(A23="", C23="",D23="",E22=""),"",C23*D23) -> 0 | F23: 0 | G23: =IF(OR(A23="", C23="",D23="",F23="",G22=""),"",J23+F23-E23) -> 0 | H23: =IF(G23="","",MAX(I22,0)) -> 55.6257547 | I23: 55.6257547 | J23: 0 | K23: 0 | V23: =IF(OR(A23="",J23=""),"",IF(AND(F23=0,J23=0),0,MAX(I22+G23-$N$13,0))) -> 0 | BA23: =IF(BB22<$H$17,BB22+1,"") -> 2018-01-03 | BB23: 2018-01-03
A24: 2018 | B24: 4/01-4/01 | C24: 0.8909917015 | D24: 0 | E24: 0 | F24: 0.508 | G24: 0.508 | H24: 55.6257547 | I24: 55.6257547 | J24: 0 | K24: 0 | V24: 0.508 | BA24: 2018-01-04 | BB24: 2018-01-04
A25: 2018 | B25: 5/01-5/01 | C25: 0.8146139365 | D25: 0 | E25: 0 | F25: 1.016 | G25: 1.016 | H25: 55.6257547 | I25: 55.6257547 | J25: 0 | K25: 0 | V25: 1.016 | BA25: 2018-01-05 | BB25: 2018-01-05
A26: 2018 | B26: 6/01-6/01 | C26: 0.7303742754 | D26: 0 | E26: 0 | F26: 25.908 | G26: 25.908 | H26: 55.6257547 | I26: 55.6257547 | J26: 0 | K26: 0 | V26: 25.908 | BA26: 2018-01-06 | BB26: 2018-01-06
A27: 2018 | B27: 7/01-7/01 | C27: 0.6949527085 | D27: 0 | E27: 0 | F27: 0 | G27: 0 | H27: 55.6257547 | I27: 55.6257547 | J27: 0 | K27: 0 | V27: 0 | BA27: 2018-01-07 | BB27: 2018-01-07
A28: 2018 | B28: 8/01-8/01 | C28: 0.6689293523 | D28: 0 | E28: 0 | F28: 0.508 | G28: 0.508 | H28: 55.6257547 | I28: 55.6257547 | J28: 0 | K28: 0 | V28: 0.508 | BA28: 2018-01-08 | BB28: 2018-01-08
A29: 2018 | B29: 9/01-9/01 | C29: 0.753264087 | D29: 0 | E29: 0 | F29: 0.762 | G29: 0.762 | H29: 55.6257547 | I29: 55.6257547 | J29: 0 | K29: 0 | V29: 0.762 | BA29: 2018-01-09 | BB29: 2018-01-09
A30: 2018 | B30: 10/01-10/01 | C30: 0.9425812079 | D30: 0 | E30: 0 | F30: 9.906 | G30: 9.906 | H30: 55.6257547 | I30: 55.6257547 | J30: 0 | K30: 0 | V30: 9.906 | BA30: 2018-01-10 | BB30: 2018-01-10
A31: 2018 | B31: 11/01-11/01 | C31: 0.7997877371 | D31: 0 | E31: 0 | F31: 1.016 | G31: 1.016 | H31: 55.6257547 | I31: 55.6257547 | J31: 0 | K31: 0 | V31: 1.016 | BA31: 2018-01-11 | BB31: 2018-01-11
A32: 2018 | B32: 12/01-12/01 | C32: 0.6945789173 | D32: 0 | E32: 0 | F32: 0 | G32: 0 | H32: 55.6257547 | I32: 55.6257547 | J32: 0 | K32: 0 | V32: 0 | BA32: 2018-01-12 | BB32: 2018-01-12
A33: 2018 | B33: 13/01-13/01 | C33: 0.8911020443 | D33: 0 | E33: 0 | F33: 7.112 | G33: 7.112 | H33: 55.6257547 | I33: 55.6257547 | J33: 0 | K33: 0 | V33: 7.112 | BA33: 2018-01-13 | BB33: 2018-01-13
A34: 2018 | B34: 14/01-14/01 | C34: 0.7873114284 | D34: 0 | E34: 0 | F34: 4.064 | G34: 4.064 | H34: 55.6257547 | I34: 55.6257547 | J34: 0 | K34: 0 | V34: 4.064 | BA34: 2018-01-14 | BB34: 2018-01-14
A35: 2018 | B35: 15/01-15/01 | C35: 0.7444256617 | D35: 0 | E35: 0 | F35: 0.254 | G35: 0.254 | H35: 55.6257547 | I35: 55.6257547 | J35: 0 | K35: 0 | V35: 0.254 | BA35: 2018-01-15 | BB35: 2018-01-15
A36: 2018 | B36: 16/01-16/01 | C36: 0.8442927413 | D36: 0 | E36: 0 | F36: 0 | G36: 0 | H36: 55.6257547 | I36: 55.6257547 | J36: 0 | K36: 0 | V36: 0 | BA36: 2018-01-16 | BB36: 2018-01-16
A37: 2018 | B37: 17/01-17/01 | C37: 1.074735709 | D37: 0 | E37: 0 | F37: 0 | G37: 0 | H37: 55.6257547 | I37: 55.6257547 | J37: 0 | K37: 0 | V37: 0 | BA37: 2018-01-17 | BB37: 2018-01-17
A38: 2018 | B38: 18/01-18/01 | C38: 1.047447815 | D38: 0 | E38: 0 | F38: 0 | G38: 0 | H38: 55.6257547 | I38: 55.6257547 | J38: 0 | K38: 0 | V38: 0 | BA38: 2018-01-18 | BB38: 2018-01-18
A39: =IF(BA39="","",YEAR(BB39)) -> 2018 | B39: =IF(A39="","",TEXT(BA39,"d/mm")&"-"&TEXT(BB39,"d/mm")) -> 19/01-19/01 | C39: 1.032782016 | D39: 0 | E39: 0 | F39: 0 | G39: 0 | H39: 55.6257547 | I39: 55.6257547 | J39: 0 | K39: 0 | V39: 0 | BA39: 2018-01-19 | BB39: 2018-01-19
A40: 2018 | B40: 20/01-20/01 | C40: 0.9450118577 | D40: 0 | E40: 0 | F40: 0 | G40: 0 | H40: 55.6257547 | I40: 55.6257547 | J40: 0 | K40: 0 | V40: 0 | BA40: 2018-01-20 | BB40: 2018-01-20
A41: 2018 | B41: 21/01-21/01 | C41: 0.9514882071 | D41: 0 | E41: 0 | F41: 0 | G41: 0 | H41: 55.6257547 | I41: 55.6257547 | J41: 0 | K41: 0 | V41: 0 | BA41: 2018-01-21 | BB41: 2018-01-21
A42: 2018 | B42: 22/01-22/01 | C42: 1.002164979 | D42: 0 | E42: 0 | F42: 0.254 | G42: 0.254 | H42: 55.6257547 | I42: 55.6257547 | J42: 0 | K42: 0 | V42: 0.254 | BA42: 2018-01-22 | BB42: 2018-01-22
A43: 2018 | B43: 23/01-23/01 | C43: 0.8461713106 | D43: 0 | E43: 0 | F43: 0.254 | G43: 0.254 | H43: 55.6257547 | I43: 55.6257547 | J43: 0 | K43: 0 | V43: 0.254 | BA43: 2018-01-23 | BB43: 2018-01-23
A44: 2018 | B44: 24/01-24/01 | C44: 0.811411068 | D44: 0 | E44: 0 | F44: 0.254 | G44: 0.254 | H44: 55.6257547 | I44: 55.6257547 | J44: 0 | K44: 0 | V44: 0.254 | BA44: 2018-01-24 | BB44: 2018-01-24
A45: 2018 | B45: 25/01-25/01 | C45: 0.955888447 | D45: 0 | E45: 0 | F45: 0 | G45: 0 | H45: 55.6257547 | I45: 55.6257547 | J45: 0 | K45: 0 | V45: 0 | BA45: 2018-01-25 | BB45: 2018-01-25
A46: 2018 | B46: 26/01-26/01 | C46: 0.9550874295 | D46: 0 | E46: 0 | F46: 3.048 | G46: 3.048 | H46: 55.6257547 | I46: 55.6257547 | J46: 0 | K46: 0 | V46: 3.048 | BA46: 2018-01-26 | BB46: 2018-01-26
A47: 2018 | B47: 27/01-27/01 | C47: 0.9705444224 | D47: 0 | E47: 0 | F47: 0 | G47: 0 | H47: 55.6257547 | I47: 55.6257547 | J47: 0 | K47: 0 | V47: 0 | BA47: 2018-01-27 | BB47: 2018-01-27
A48: 2018 | B48: 28/01-28/01 | C48: 1.066712595 | D48: 0 | E48: 0 | F48: 0 | G48: 0 | H48: 55.6257547 | I48: 55.6257547 | J48: 0 | K48: 0 | V48: 0 | BA48: 2018-01-28 | BB48: 2018-01-28
A49: 2018 | B49: 29/01-29/01 | C49: 1.240697269 | D49: 0 | E49: 0 | F49: 0 | G49: 0 | H49: 55.6257547 | I49: 55.6257547 | J49: 0 | K49: 0 | V49: 0 | BA49: 2018-01-29 | BB49: 2018-01-29
A50: 2018 | B50: 30/01-30/01 | C50: 1.212613492 | D50: 0 | E50: 0 | F50: 0 | G50: 0 | H50: 55.6257547 | I50: 55.6257547 | J50: 0 | K50: 0 | V50: 0 | BA50: 2018-01-30 | BB50: 2018-01-30
A51: 2018 | B51: 31/01-31/01 | C51: 1.263464754 | D51: 0 | E51: 0 | F51: 0 | G51: 0 | H51: 55.6257547 | I51: 55.6257547 | J51: 0 | K51: 0 | V51: 0 | BA51: 2018-01-31 | BB51: 2018-01-31
A52: 2018 | B52: 1/02-1/02 | C52: 1.256011544 | D52: 0 | E52: 0 | F52: 0 | G52: 0 | H52: 55.6257547 | I52: 55.6257547 | J52: 0 | K52: 0 | V52: 0 | BA52: 2018-02-01 | BB52: 2018-02-01
A53: 2018 | B53: 2/02-2/02 | C53: 1.103913891 | D53: 0 | E53: 0 | F53: 0 | G53: 0 | H53: 55.6257547 | I53: 55.6257547 | J53: 0 | K53: 0 | V53: 0 | BA53: 2018-02-02 | BB53: 2018-02-02
A54: 2018 | B54: 3/02-3/02 | C54: 1.112043894 | D54: 0 | E54: 0 | F54: 0 | G54: 0 | H54: 55.6257547 | I54: 55.6257547 | J54: 0 | K54: 0 | V54: 0 | BA54: 2018-02-03 | BB54: 2018-02-03
A55: 2018 | B55: 4/02-4/02 | C55: 1.038122502 | D55: 0 | E55: 0 | F55: 0.762 | G55: 0.762 | H55: 55.6257547 | I55: 55.6257547 | J55: 0 | K55: 0 | V55: 0.762 | BA55: 2018-02-04 | BB55: 2018-02-04
A56: 2018 | B56: 5/02-5/02 | C56: 1.137371441 | D56: 0 | E56: 0 | F56: 0 | G56: 0 | H56: 55.6257547 | I56: 55.6257547 | J56: 0 | K56: 0 | V56: 0 | BA56: 2018-02-05 | BB56: 2018-02-05
A57: 2018 | B57: 6/02-6/02 | C57: 1.065641771 | D57: 0 | E57: 0 | F57: 0 | G57: 0 | H57: 55.6257547 | I57: 55.6257547 | J57: 0 | K57: 0 | V57: 0 | BA57: 2018-02-06 | BB57: 2018-02-06
A58: 2018 | B58: 7/02-7/02 | C58: 1.071693024 | D58: 0 | E58: 0 | F58: 0 | G58: 0 | H58: 55.6257547 | I58: 55.6257547 | J58: 0 | K58: 0 | V58: 0 | BA58: 2018-02-07 | BB58: 2018-02-07
A59: 2018 | B59: 8/02-8/02 | C59: 1.090323646 | D59: 0 | E59: 0 | F59: 0 | G59: 0 | H59: 55.6257547 | I59: 55.6257547 | J59: 0 | K59: 0 | V59: 0 | BA59: 2018-02-08 | BB59: 2018-02-08
A60: 2018 | B60: 9/02-9/02 | C60: 1.041496643 | D60: 0 | E60: 0 | F60: 2.032 | G60: 2.032 | H60: 55.6257547 | I60: 55.6257547 | J60: 0 | K60: 0 | V60: 2.032 | BA60: 2018-02-09 | BB60: 2018-02-09
A61: 2018 | B61: 10/02-10/02 | C61: 1.214728299 | D61: 0 | E61: 0 | F61: 0.508 | G61: 0.508 | H61: 55.6257547 | I61: 55.6257547 | J61: 0 | K61: 0 | V61: 0.508 | BA61: 2018-02-10 | BB61: 2018-02-10
A62: 2018 | B62: 11/02-11/02 | C62: 1.320144673 | D62: 0 | E62: 0 | F62: 0 | G62: 0 | H62: 55.6257547 | I62: 55.6257547 | J62: 0 | K62: 0 | V62: 0 | BA62: 2018-02-11 | BB62: 2018-02-11
A63: 2018 | B63: 12/02-12/02 | C63: 1.358075266 | D63: 0 | E63: 0 | F63: 2.032 | G63: 2.032 | H63: 55.6257547 | I63: 55.6257547 | J63: 0 | K63: 0 | V63: 2.032 | BA63: 2018-02-12 | BB63: 2018-02-12
A64: 2018 | B64: 13/02-13/02 | C64: 1.332107713 | D64: 0 | E64: 0 | F64: 0 | G64: 0 | H64: 55.6257547 | I64: 55.6257547 | J64: 0 | K64: 0 | V64: 0 | BA64: 2018-02-13 | BB64: 2018-02-13
A65: 2018 | B65: 14/02-14/02 | C65: 1.353246559 | D65: 0 | E65: 0 | F65: 0 | G65: 0 | H65: 55.6257547 | I65: 55.6257547 | J65: 0 | K65: 0 | V65: 0 | BA65: 2018-02-14 | BB65: 2018-02-14
A66: 2018 | B66: 15/02-15/02 | C66: 1.520528185 | D66: 0 | E66: 0 | F66: 0 | G66: 0 | H66: 55.6257547 | I66: 55.6257547 | J66: 0 | K66: 0 | V66: 0 | BA66: 2018-02-15 | BB66: 2018-02-15
A67: 2018 | B67: 16/02-16/02 | C67: 1.677458823 | D67: 0 | E67: 0 | F67: 0 | G67: 0 | H67: 55.6257547 | I67: 55.6257547 | J67: 0 | K67: 0 | V67: 0 | BA67: 2018-02-16 | BB67: 2018-02-16
A68: 2018 | B68: 17/02-17/02 | C68: 1.565382724 | D68: 0 | E68: 0 | F68: 0 | G68: 0 | H68: 55.6257547 | I68: 55.6257547 | J68: 0 | K68: 0 | V68: 0 | BA68: 2018-02-17 | BB68: 2018-02-17
A69: 2018 | B69: 18/02-18/02 | C69: 1.650849642 | D69: 0 | E69: 0 | F69: 0 | G69: 0 | H69: 55.6257547 | I69: 55.6257547 | J69: 0 | K69: 0 | V69: 0 | BA69: 2018-02-18 | BB69: 2018-02-18
A70: 2018 | B70: 19/02-19/02 | C70: 1.684230177 | D70: 0 | E70: 0 | F70: 0 | G70: 0 | H70: 55.6257547 | I70: 55.6257547 | J70: 0 | K70: 0 | V70: 0 | BA70: 2018-02-19 | BB70: 2018-02-19
A71: 2018 | B71: 20/02-20/02 | C71: 1.836092348 | D71: 0 | E71: 0 | F71: 0 | G71: 0 | H71: 55.6257547 | I71: 55.6257547 | J71: 0 | K71: 0 | V71: 0 | BA71: 2018-02-20 | BB71: 2018-02-20
A72: 2018 | B72: 21/02-21/02 | C72: 1.727339481 | D72: 0 | E72: 0 | F72: 0 | G72: 0 | H72: 55.6257547 | I72: 55.6257547 | J72: 0 | K72: 0 | V72: 0 | BA72: 2018-02-21 | BB72: 2018-02-21
A73: 2018 | B73: 22/02-22/02 | C73: 1.65568615 | D73: 0 | E73: 0 | F73: 0 | G73: 0 | H73: 55.6257547 | I73: 55.6257547 | J73: 0 | K73: 0 | V73: 0 | BA73: 2018-02-22 | BB73: 2018-02-22
A74: 2018 | B74: 23/02-23/02 | C74: 1.665918674 | D74: 0 | E74: 0 | F74: 0 | G74: 0 | H74: 55.6257547 | I74: 55.6257547 | J74: 0 | K74: 0 | V74: 0 | BA74: 2018-02-23 | BB74: 2018-02-23
A75: 2018 | B75: 24/02-24/02 | C75: 1.664526756 | D75: 0 | E75: 0 | F75: 0 | G75: 0 | H75: 55.6257547 | I75: 55.6257547 | J75: 0 | K75: 0 | V75: 0 | BA75: 2018-02-24 | BB75: 2018-02-24
A76: 2018 | B76: 25/02-25/02 | C76: 1.781933272 | D76: 0 | E76: 0 | F76: 0 | G76: 0 | H76: 55.6257547 | I76: 55.6257547 | J76: 0 | K76: 0 | V76: 0 | BA76: 2018-02-25 | BB76: 2018-02-25
A77: 2018 | B77: 26/02-26/02 | C77: 1.717513662 | D77: 0 | E77: 0 | F77: 4.064 | G77: 4.064 | H77: 55.6257547 | I77: 55.6257547 | J77: 0 | K77: 0 | V77: 4.064 | BA77: 2018-02-26 | BB77: 2018-02-26
A78: 2018 | B78: 27/02-27/02 | C78: 1.873524583 | D78: 0 | E78: 0 | F78: 0 | G78: 0 | H78: 55.6257547 | I78: 55.6257547 | J78: 0 | K78: 0 | V78: 0 | BA78: 2018-02-27 | BB78: 2018-02-27
A79: 2018 | B79: 28/02-28/02 | C79: 1.892192797 | D79: 0 | E79: 0 | F79: 5.08 | G79: 5.08 | H79: 55.6257547 | I79: 55.6257547 | J79: 0 | K79: 0 | V79: 5.08 | BA79: 2018-02-28 | BB79: 2018-02-28
A80: 2018 | B80: 1/03-1/03 | C80: 1.95187344 | D80: 0 | E80: 0 | F80: 0 | G80: 0 | H80: 55.6257547 | I80: 55.6257547 | J80: 0 | K80: 0 | V80: 0 | BA80: 2018-03-01 | BB80: 2018-03-01
A81: 2018 | B81: 2/03-2/03 | C81: 1.801076579 | D81: 0 | E81: 0 | F81: 12.954 | G81: 12.954 | H81: 55.6257547 | I81: 55.6257547 | J81: 0 | K81: 0 | V81: 12.954 | BA81: 2018-03-02 | BB81: 2018-03-02
A82: 2018 | B82: 3/03-3/03 | C82: 1.989571773 | D82: 0 | E82: 0 | F82: 8.89 | G82: 8.89 | H82: 55.6257547 | I82: 55.6257547 | J82: 0 | K82: 0 | V82: 8.89 | BA82: 2018-03-03 | BB82: 2018-03-03
A83: 2018 | B83: 4/03-4/03 | C83: 1.957503257 | D83: 0 | E83: 0 | F83: 3.048 | G83: 3.048 | H83: 55.6257547 | I83: 55.6257547 | J83: 0 | K83: 0 | V83: 3.048 | BA83: 2018-03-04 | BB83: 2018-03-04
A84: 2018 | B84: 5/03-5/03 | C84: 1.959887342 | D84: 0 | E84: 0 | F84: 9.906 | G84: 9.906 | H84: 55.6257547 | I84: 55.6257547 | J84: 0 | K84: 0 | V84: 9.906 | BA84: 2018-03-05 | BB84: 2018-03-05
A85: 2018 | B85: 6/03-6/03 | C85: 1.790033638 | D85: 0 | E85: 0 | F85: 0 | G85: 0 | H85: 55.6257547 | I85: 55.6257547 | J85: =IF(OR($A85="",$C85="",$D85="",$F85="",$J84=""),"",IF($I84+$F85-$E85<=0,$K$13*$B$13-$I84,0)) -> 0 | K85: 0 | V85: 0 | BA85: 2018-03-06 | BB85: 2018-03-06
A86: 2018 | B86: 7/03-7/03 | C86: 1.777299006 | D86: 0 | E86: 0 | F86: 3.048 | G86: 3.048 | H86: 55.6257547 | I86: =IF(G86="","",MAX(MIN($K$13*$B$13,H86+G86),0)) -> 55.6257547 | J86: 0 | K86: =IF(OR(A86="",G86=""),"",J86/$H$15) -> 0 | V86: 3.048 | BA86: 2018-03-07 | BB86: =IF(BA86="","",BA86+$X$1-1) -> 2018-03-07
A87: 2018 | B87: 8/03-8/03 | C87: 1.762833263 | D87: 0 | E87: =IF(OR(A87="", C87="",D87="",E86=""),"",C87*D87) -> 0 | F87: 2.032 | G87: =IF(OR(A87="", C87="",D87="",F87="",G86=""),"",J87+F87-E87) -> 2.032 | H87: =IF(G87="","",MAX(I86,0)) -> 55.6257547 | I87: 55.6257547 | J87: 0 | K87: 0 | V87: =IF(OR(A87="",J87=""),"",IF(AND(F87=0,J87=0),0,MAX(I86+G87-$N$13,0))) -> 2.032 | BA87: =IF(BB86<$H$17,BB86+1,"") -> 2018-03-08 | BB87: 2018-03-08
A88: 2018 | B88: 9/03-9/03 | C88: 2.01946718 | D88: 0 | E88: 0 | F88: 14.986 | G88: 14.986 | H88: 55.6257547 | I88: 55.6257547 | J88: 0 | K88: 0 | V88: 14.986 | BA88: 2018-03-09 | BB88: 2018-03-09
A89: 2018 | B89: 10/03-10/03 | C89: 2.172616609 | D89: 0 | E89: 0 | F89: 7.112 | G89: 7.112 | H89: 55.6257547 | I89: 55.6257547 | J89: 0 | K89: 0 | V89: 7.112 | BA89: 2018-03-10 | BB89: 2018-03-10
A90: 2018 | B90: 11/03-11/03 | C90: 2.09008035 | D90: 0 | E90: 0 | F90: 22.098 | G90: 22.098 | H90: 55.6257547 | I90: 55.6257547 | J90: 0 | K90: 0 | V90: 22.098 | BA90: 2018-03-11 | BB90: 2018-03-11
A91: 2018 | B91: 12/03-12/03 | C91: 1.882598499 | D91: 0 | E91: 0 | F91: 6.096 | G91: 6.096 | H91: 55.6257547 | I91: 55.6257547 | J91: 0 | K91: 0 | V91: 6.096 | BA91: 2018-03-12 | BB91: 2018-03-12
A92: 2018 | B92: 13/03-13/03 | C92: 2.183930468 | D92: 0 | E92: 0 | F92: 3.048 | G92: 3.048 | H92: 55.6257547 | I92: 55.6257547 | J92: 0 | K92: 0 | V92: 3.048 | BA92: 2018-03-13 | BB92: 2018-03-13
A93: 2018 | B93: 14/03-14/03 | C93: 2.427691648 | D93: 0 | E93: 0 | F93: 0.254 | G93: 0.254 | H93: 55.6257547 | I93: 55.6257547 | J93: 0 | K93: 0 | V93: 0.254 | BA93: 2018-03-14 | BB93: 2018-03-14
A94: 2018 | B94: 15/03-15/03 | C94: 2.178446897 | D94: 0 | E94: 0 | F94: 0.762 | G94: 0.762 | H94: 55.6257547 | I94: 55.6257547 | J94: 0 | K94: 0 | V94: 0.762 | BA94: 2018-03-15 | BB94: 2018-03-15
A95: 2018 | B95: 16/03-16/03 | C95: 2.093444703 | D95: 0 | E95: 0 | F95: 16.002 | G95: 16.002 | H95: 55.6257547 | I95: 55.6257547 | J95: 0 | K95: 0 | V95: 16.002 | BA95: 2018-03-16 | BB95: 2018-03-16
A96: 2018 | B96: 17/03-17/03 | C96: 2.023680854 | D96: 0 | E96: 0 | F96: 4.064 | G96: 4.064 | H96: 55.6257547 | I96: 55.6257547 | J96: 0 | K96: 0 | V96: 4.064 | BA96: 2018-03-17 | BB96: 2018-03-17
A97: 2018 | B97: 18/03-18/03 | C97: 2.014059912 | D97: 0 | E97: 0 | F97: 3.048 | G97: 3.048 | H97: 55.6257547 | I97: 55.6257547 | J97: 0 | K97: 0 | V97: 3.048 | BA97: 2018-03-18 | BB97: 2018-03-18
A98: 2018 | B98: 19/03-19/03 | C98: 2.106848352 | D98: 0 | E98: 0 | F98: 21.082 | G98: 21.082 | H98: 55.6257547 | I98: 55.6257547 | J98: 0 | K98: 0 | V98: 21.082 | BA98: 2018-03-19 | BB98: 2018-03-19
A99: 2018 | B99: 20/03-20/03 | C99: 2.081450285 | D99: 0 | E99: 0 | F99: 0 | G99: 0 | H99: 55.6257547 | I99: 55.6257547 | J99: 0 | K99: 0 | V99: 0 | BA99: 2018-03-20 | BB99: 2018-03-20
A100: 2018 | B100: 21/03-21/03 | C100: 1.94732176 | D100: 0 | E100: 0 | F100: 9.906 | G100: 9.906 | H100: 55.6257547 | I100: 55.6257547 | J100: 0 | K100: 0 | V100: 9.906 | BA100: 2018-03-21 | BB100: 2018-03-21
A101: 2018 | B101: 22/03-22/03 | C101: 2.107024133 | D101: 0 | E101: 0 | F101: 0 | G101: 0 | H101: 55.6257547 | I101: 55.6257547 | J101: 0 | K101: 0 | V101: 0 | BA101: 2018-03-22 | BB101: 2018-03-22
A102: 2018 | B102: 23/03-23/03 | C102: 2.217101202 | D102: 0 | E102: 0 | F102: 0 | G102: 0 | H102: 55.6257547 | I102: 55.6257547 | J102: 0 | K102: 0 | V102: 0 | BA102: 2018-03-23 | BB102: 2018-03-23
A103: =IF(BA103="","",YEAR(BB103)) -> 2018 | B103: =IF(A103="","",TEXT(BA103,"d/mm")&"-"&TEXT(BB103,"d/mm")) -> 24/03-24/03 | C103: 2.110912032 | D103: 0 | E103: 0 | F103: 0 | G103: 0 | H103: 55.6257547 | I103: 55.6257547 | J103: 0 | K103: 0 | V103: 0 | BA103: 2018-03-24 | BB103: 2018-03-24
A104: 2018 | B104: 25/03-25/03 | C104: 2.020108187 | D104: 0 | E104: 0 | F104: 5.08 | G104: 5.08 | H104: 55.6257547 | I104: 55.6257547 | J104: 0 | K104: 0 | V104: 5.08 | BA104: 2018-03-25 | BB104: 2018-03-25
A105: 2018 | B105: 26/03-26/03 | C105: 2.149253009 | D105: 0 | E105: 0 | F105: 3.048 | G105: 3.048 | H105: 55.6257547 | I105: 55.6257547 | J105: 0 | K105: 0 | V105: 3.048 | BA105: 2018-03-26 | BB105: 2018-03-26
A106: 2018 | B106: 27/03-27/03 | C106: 2.46800934 | D106: 0 | E106: 0 | F106: 0 | G106: 0 | H106: 55.6257547 | I106: 55.6257547 | J106: 0 | K106: 0 | V106: 0 | BA106: 2018-03-27 | BB106: 2018-03-27
A107: 2018 | B107: 28/03-28/03 | C107: 2.90219316 | D107: 0 | E107: 0 | F107: 0 | G107: 0 | H107: 55.6257547 | I107: 55.6257547 | J107: 0 | K107: 0 | V107: 0 | BA107: 2018-03-28 | BB107: 2018-03-28
A108: 2018 | B108: 29/03-29/03 | C108: 2.721432679 | D108: 0 | E108: 0 | F108: 0 | G108: 0 | H108: 55.6257547 | I108: 55.6257547 | J108: 0 | K108: 0 | V108: 0 | BA108: 2018-03-29 | BB108: 2018-03-29
A109: 2018 | B109: 30/03-30/03 | C109: 2.304972761 | D109: 0 | E109: 0 | F109: 0 | G109: 0 | H109: 55.6257547 | I109: 55.6257547 | J109: 0 | K109: 0 | V109: 0 | BA109: 2018-03-30 | BB109: 2018-03-30
A110: 2018 | B110: 31/03-31/03 | C110: 2.22178713 | D110: 0 | E110: 0 | F110: 0.508 | G110: 0.508 | H110: 55.6257547 | I110: 55.6257547 | J110: 0 | K110: 0 | V110: 0.508 | BA110: 2018-03-31 | BB110: 2018-03-31
A111: 2018 | B111: 1/04-1/04 | C111: 2.555517745 | D111: 0.6 | E111: 1.533310647 | F111: 0.254 | G111: -1.279310647 | H111: 55.6257547 | I111: 54.34644406 | J111: 0 | K111: 0 | V111: 0 | BA111: 2018-04-01 | BB111: 2018-04-01
A112: 2018 | B112: 2/04-2/04 | C112: 3.172166387 | D112: 0.6 | E112: 1.903299832 | F112: 0 | G112: -1.903299832 | H112: 54.34644406 | I112: 52.44314423 | J112: 0 | K112: 0 | V112: 0 | BA112: 2018-04-02 | BB112: 2018-04-02
A113: 2018 | B113: 3/04-3/04 | C113: 3.118012503 | D113: 0.6 | E113: 1.870807502 | F113: 3.048 | G113: 1.177192498 | H113: 52.44314423 | I113: 53.62033672 | J113: 0 | K113: 0 | V113: 0 | BA113: 2018-04-03 | BB113: 2018-04-03
A114: 2018 | B114: 4/04-4/04 | C114: 3.094841514 | D114: 0.6 | E114: 1.856904909 | F114: 0 | G114: -1.856904909 | H114: 53.62033672 | I114: 51.76343182 | J114: 0 | K114: 0 | V114: 0 | BA114: 2018-04-04 | BB114: 2018-04-04
A115: 2018 | B115: 5/04-5/04 | C115: 3.092983188 | D115: 0.6 | E115: 1.855789913 | F115: 0 | G115: -1.855789913 | H115: 51.76343182 | I115: 49.9076419 | J115: 0 | K115: 0 | V115: 0 | BA115: 2018-04-05 | BB115: 2018-04-05
A116: 2018 | B116: 6/04-6/04 | C116: 3.361690258 | D116: 0.6 | E116: 2.017014155 | F116: 0 | G116: -2.017014155 | H116: 49.9076419 | I116: 47.89062775 | J116: 0 | K116: 0 | V116: 0 | BA116: 2018-04-06 | BB116: 2018-04-06
A117: 2018 | B117: 7/04-7/04 | C117: 3.245633203 | D117: 0.6 | E117: 1.947379922 | F117: 4.064 | G117: 2.116620078 | H117: 47.89062775 | I117: 50.00724783 | J117: 0 | K117: 0 | V117: 0 | BA117: 2018-04-07 | BB117: 2018-04-07
A118: 2018 | B118: 8/04-8/04 | C118: 2.787152268 | D118: 0.6 | E118: 1.672291361 | F118: 0.254 | G118: -1.418291361 | H118: 50.00724783 | I118: 48.58895646 | J118: 0 | K118: 0 | V118: 0 | BA118: 2018-04-08 | BB118: 2018-04-08
A119: 2018 | B119: 9/04-9/04 | C119: 2.862879582 | D119: 0.6 | E119: 1.717727749 | F119: 2.032 | G119: 0.3142722511 | H119: 48.58895646 | I119: 48.90322872 | J119: 0 | K119: 0 | V119: 0 | BA119: 2018-04-09 | BB119: 2018-04-09
A120: 2018 | B120: 10/04-10/04 | C120: 2.736036837 | D120: 0.6 | E120: 1.641622102 | F120: 2.032 | G120: 0.3903778978 | H120: 48.90322872 | I120: 49.29360661 | J120: 0 | K120: 0 | V120: 0 | BA120: 2018-04-10 | BB120: 2018-04-10
A121: 2018 | B121: 11/04-11/04 | C121: 2.507983357 | D121: 0.6 | E121: 1.504790014 | F121: 7.874 | G121: 6.369209986 | H121: 49.29360661 | I121: 55.6257547 | J121: 0 | K121: 0 | V121: 0.0370618948 | BA121: 2018-04-11 | BB121: 2018-04-11
A122: 2018 | B122: 12/04-12/04 | C122: 2.727509895 | D122: 0.6 | E122: 1.636505937 | F122: 10.922 | G122: 9.285494063 | H122: 55.6257547 | I122: 55.6257547 | J122: 0 | K122: 0 | V122: 9.285494063 | BA122: 2018-04-12 | BB122: 2018-04-12
A123: 2018 | B123: 13/04-13/04 | C123: 2.793419326 | D123: 0.6 | E123: 1.676051596 | F123: 3.048 | G123: 1.371948404 | H123: 55.6257547 | I123: 55.6257547 | J123: 0 | K123: 0 | V123: 1.371948404 | BA123: 2018-04-13 | BB123: 2018-04-13
A124: 2018 | B124: 14/04-14/04 | C124: 3.042632453 | D124: 0.6 | E124: 1.825579472 | F124: 17.018 | G124: 15.19242053 | H124: 55.6257547 | I124: 55.6257547 | J124: 0 | K124: 0 | V124: 15.19242053 | BA124: 2018-04-14 | BB124: 2018-04-14
A125: 2018 | B125: 15/04-15/04 | C125: 3.220764033 | D125: 0.6 | E125: 1.93245842 | F125: 0.254 | G125: -1.67845842 | H125: 55.6257547 | I125: 53.94729628 | J125: 0 | K125: 0 | V125: 0 | BA125: 2018-04-15 | BB125: 2018-04-15
A126: 2018 | B126: 16/04-16/04 | C126: 3.295309411 | D126: 0.6 | E126: 1.977185646 | F126: 0 | G126: -1.977185646 | H126: 53.94729628 | I126: 51.97011064 | J126: 0 | K126: 0 | V126: 0 | BA126: 2018-04-16 | BB126: 2018-04-16
A127: 2018 | B127: 17/04-17/04 | C127: 3.364480215 | D127: 0.6 | E127: 2.018688129 | F127: 4.064 | G127: 2.045311871 | H127: 51.97011064 | I127: 54.01542251 | J127: 0 | K127: 0 | V127: 0 | BA127: 2018-04-17 | BB127: 2018-04-17
A128: 2018 | B128: 18/04-18/04 | C128: 3.762509474 | D128: 0.6 | E128: 2.257505684 | F128: 0 | G128: -2.257505684 | H128: 54.01542251 | I128: 51.75791683 | J128: 0 | K128: 0 | V128: 0 | BA128: 2018-04-18 | BB128: 2018-04-18
A129: 2018 | B129: 19/04-19/04 | C129: 4.116649991 | D129: 0.6 | E129: 2.469989994 | F129: 0 | G129: -2.469989994 | H129: 51.75791683 | I129: 49.28792683 | J129: 0 | K129: 0 | V129: 0 | BA129: 2018-04-19 | BB129: 2018-04-19
A130: 2018 | B130: 20/04-20/04 | C130: 4.119985624 | D130: 0.6 | E130: 2.471991374 | F130: 0 | G130: -2.471991374 | H130: 49.28792683 | I130: 46.81593546 | J130: 0 | K130: 0 | V130: 0 | BA130: 2018-04-20 | BB130: 2018-04-20
A131: 2018 | B131: 21/04-21/04 | C131: 3.879038574 | D131: =D130+0.6/45 -> 0.6133333333 | E131: 2.379143659 | F131: 0.508 | G131: -1.871143659 | H131: 46.81593546 | I131: 44.9447918 | J131: 0 | K131: 0 | V131: 0 | BA131: 2018-04-21 | BB131: 2018-04-21
A132: 2018 | B132: 22/04-22/04 | C132: 3.630362345 | D132: =D131+0.6/45 -> 0.6266666667 | E132: 2.27502707 | F132: 14.986 | G132: 12.71097293 | H132: 44.9447918 | I132: 55.6257547 | J132: 0 | K132: 0 | V132: 2.030010024 | BA132: 2018-04-22 | BB132: 2018-04-22
A133: 2018 | B133: 23/04-23/04 | C133: 3.854615509 | D133: 0.64 | E133: 2.466953926 | F133: 0.254 | G133: -2.212953926 | H133: 55.6257547 | I133: 53.41280078 | J133: 0 | K133: 0 | V133: 0 | BA133: 2018-04-23 | BB133: 2018-04-23
A134: 2018 | B134: 24/04-24/04 | C134: 4.414562326 | D134: 0.6533333333 | E134: 2.88418072 | F134: 0 | G134: -2.88418072 | H134: 53.41280078 | I134: 50.52862006 | J134: 0 | K134: 0 | V134: 0 | BA134: 2018-04-24 | BB134: 2018-04-24
A135: 2018 | B135: 25/04-25/04 | C135: 4.440907734 | D135: 0.6666666667 | E135: 2.960605156 | F135: 0 | G135: -2.960605156 | H135: 50.52862006 | I135: 47.5680149 | J135: 0 | K135: 0 | V135: 0 | BA135: 2018-04-25 | BB135: 2018-04-25
A136: 2018 | B136: 26/04-26/04 | C136: 4.474414168 | D136: 0.68 | E136: 3.042601634 | F136: 0 | G136: -3.042601634 | H136: 47.5680149 | I136: 44.52541327 | J136: 0 | K136: 0 | V136: 0 | BA136: 2018-04-26 | BB136: 2018-04-26
A137: 2018 | B137: 27/04-27/04 | C137: 4.313777952 | D137: 0.6933333333 | E137: 2.990886047 | F137: 0 | G137: -2.990886047 | H137: 44.52541327 | I137: 41.53452722 | J137: 0 | K137: 0 | V137: 0 | BA137: 2018-04-27 | BB137: 2018-04-27
A138: 2018 | B138: 28/04-28/04 | C138: 3.616394787 | D138: 0.7066666667 | E138: 2.555585649 | F138: 0 | G138: -2.555585649 | H138: 41.53452722 | I138: 38.97894157 | J138: 0 | K138: 0 | V138: 0 | BA138: 2018-04-28 | BB138: 2018-04-28
A139: 2018 | B139: 29/04-29/04 | C139: 3.13457769 | D139: 0.72 | E139: 2.256895937 | F139: 1.016 | G139: -1.240895937 | H139: 38.97894157 | I139: 37.73804564 | J139: 0 | K139: 0 | V139: 0 | BA139: 2018-04-29 | BB139: 2018-04-29
A140: 2018 | B140: 30/04-30/04 | C140: 3.053789197 | D140: 0.7333333333 | E140: 2.239445411 | F140: 5.08 | G140: 2.840554589 | H140: 37.73804564 | I140: 40.57860023 | J140: 0 | K140: 0 | V140: 0 | BA140: 2018-04-30 | BB140: 2018-04-30
A141: 2018 | B141: 1/05-1/05 | C141: 3.361318822 | D141: 0.7466666667 | E141: 2.509784721 | F141: 3.048 | G141: 0.5382152795 | H141: 40.57860023 | I141: 41.1168155 | J141: 0 | K141: 0 | V141: 0 | BA141: 2018-05-01 | BB141: 2018-05-01
A142: 2018 | B142: 2/05-2/05 | C142: 3.483006884 | D142: 0.76 | E142: 2.647085232 | F142: 0 | G142: -2.647085232 | H142: 41.1168155 | I142: 38.46973027 | J142: 0 | K142: 0 | V142: 0 | BA142: 2018-05-02 | BB142: 2018-05-02
A143: 2018 | B143: 3/05-3/05 | C143: 3.409138781 | D143: 0.7733333333 | E143: 2.636400657 | F143: 0 | G143: -2.636400657 | H143: 38.46973027 | I143: 35.83332962 | J143: 0 | K143: 0 | V143: 0 | BA143: 2018-05-03 | BB143: 2018-05-03
A144: 2018 | B144: 4/05-4/05 | C144: 3.897684054 | D144: 0.7866666667 | E144: 3.066178122 | F144: 0 | G144: -3.066178122 | H144: 35.83332962 | I144: 32.76715149 | J144: 0 | K144: 0 | V144: 0 | BA144: 2018-05-04 | BB144: 2018-05-04
A145: 2018 | B145: 5/05-5/05 | C145: 4.201994147 | D145: 0.8 | E145: 3.361595318 | F145: 0 | G145: -3.361595318 | H145: 32.76715149 | I145: 29.40555618 | J145: 0 | K145: 0 | V145: 0 | BA145: 2018-05-05 | BB145: 2018-05-05
A146: 2018 | B146: 6/05-6/05 | C146: 4.511539095 | D146: 0.8133333333 | E146: 3.669385131 | F146: 0 | G146: -3.669385131 | H146: 29.40555618 | I146: 25.73617104 | J146: 0 | K146: 0 | V146: 0 | BA146: 2018-05-06 | BB146: 2018-05-06
A147: 2018 | B147: 7/05-7/05 | C147: 4.774947148 | D147: 0.8266666667 | E147: 3.947289643 | F147: 0.508 | G147: -3.439289643 | H147: 25.73617104 | I147: 22.2968814 | J147: 0 | K147: 0 | V147: 0 | BA147: 2018-05-07 | BB147: 2018-05-07
A148: 2018 | B148: 8/05-8/05 | C148: 4.682541263 | D148: 0.84 | E148: 3.933334661 | F148: 2.032 | G148: -1.901334661 | H148: 22.2968814 | I148: 20.39554674 | J148: 0 | K148: 0 | V148: 0 | BA148: 2018-05-08 | BB148: 2018-05-08
A149: 2018 | B149: 9/05-9/05 | C149: 4.452251476 | D149: 0.8533333333 | E149: 3.799254593 | F149: 0 | G149: -3.799254593 | H149: 20.39554674 | I149: 16.59629215 | J149: =IF(OR($A149="",$C149="",$D149="",$F149="",$J148=""),"",IF($I148+$F149-$E149<=0,$K$13*$B$13-$I148,0)) -> 0 | K149: 0 | V149: 0 | BA149: 2018-05-09 | BB149: 2018-05-09
A150: 2018 | B150: 10/05-10/05 | C150: 3.719763264 | D150: 0.8666666667 | E150: 3.223794829 | F150: 0 | G150: -3.223794829 | H150: 16.59629215 | I150: =IF(G150="","",MAX(MIN($K$13*$B$13,H150+G150),0)) -> 13.37249732 | J150: 0 | K150: =IF(OR(A150="",G150=""),"",J150/$H$15) -> 0 | V150: 0 | BA150: 2018-05-10 | BB150: =IF(BA150="","",BA150+$X$1-1) -> 2018-05-10
A151: 2018 | B151: 11/05-11/05 | C151: 4.279204355 | D151: 0.88 | E151: =IF(OR(A151="", C151="",D151="",E150=""),"",C151*D151) -> 3.765699832 | F151: 0 | G151: =IF(OR(A151="", C151="",D151="",F151="",G150=""),"",J151+F151-E151) -> -3.765699832 | H151: =IF(G151="","",MAX(I150,0)) -> 13.37249732 | I151: 9.606797487 | J151: 0 | K151: 0 | V151: =IF(OR(A151="",J151=""),"",IF(AND(F151=0,J151=0),0,MAX(I150+G151-$N$13,0))) -> 0 | BA151: =IF(BB150<$H$17,BB150+1,"") -> 2018-05-11 | BB151: 2018-05-11
A152: 2018 | B152: 12/05-12/05 | C152: 4.144451181 | D152: 0.8933333333 | E152: 3.702376388 | F152: 0 | G152: -3.702376388 | H152: 9.606797487 | I152: 5.904421099 | J152: 0 | K152: 0 | V152: 0 | BA152: 2018-05-12 | BB152: 2018-05-12
A153: 2018 | B153: 13/05-13/05 | C153: 3.774872807 | D153: 0.9066666667 | E153: 3.422551345 | F153: 0 | G153: -3.422551345 | H153: 5.904421099 | I153: 2.481869754 | J153: 0 | K153: 0 | V153: 0 | BA153: 2018-05-13 | BB153: 2018-05-13
A154: 2018 | B154: 14/05-14/05 | C154: 3.824373754 | D154: 0.92 | E154: 3.518423854 | F154: 0 | G154: 49.6254611 | H154: 2.481869754 | I154: 52.10733085 | J154: 53.14388495 | K154: 62.52221759 | V154: 0 | BA154: 2018-05-14 | BB154: 2018-05-14
A155: 2018 | B155: 15/05-15/05 | C155: 4.321338148 | D155: 0.9333333333 | E155: 4.033248938 | F155: 0 | G155: -4.033248938 | H155: 52.10733085 | I155: 48.07408191 | J155: 0 | K155: 0 | V155: 0 | BA155: 2018-05-15 | BB155: 2018-05-15
A156: 2018 | B156: 16/05-16/05 | C156: 4.792767478 | D156: 0.9466666667 | E156: 4.537153212 | F156: 0 | G156: -4.537153212 | H156: 48.07408191 | I156: 43.5369287 | J156: 0 | K156: 0 | V156: 0 | BA156: 2018-05-16 | BB156: 2018-05-16
A157: 2018 | B157: 17/05-17/05 | C157: 5.202917544 | D157: 0.96 | E157: 4.994800842 | F157: 0 | G157: -4.994800842 | H157: 43.5369287 | I157: 38.54212786 | J157: 0 | K157: 0 | V157: 0 | BA157: 2018-05-17 | BB157: 2018-05-17
A158: 2018 | B158: 18/05-18/05 | C158: 5.207777559 | D158: 0.9733333333 | E158: 5.068903491 | F158: 0 | G158: -5.068903491 | H158: 38.54212786 | I158: 33.47322437 | J158: 0 | K158: 0 | V158: 0 | BA158: 2018-05-18 | BB158: 2018-05-18
A159: 2018 | B159: 19/05-19/05 | C159: 4.713640585 | D159: 0.9866666667 | E159: 4.650792043 | F159: 19.05 | G159: 14.39920796 | H159: 33.47322437 | I159: 47.87243232 | J159: 0 | K159: 0 | V159: 0 | BA159: 2018-05-19 | BB159: 2018-05-19
A160: 2018 | B160: 20/05-20/05 | C160: 4.928587213 | D160: 1 | E160: 4.928587213 | F160: 2.032 | G160: -2.896587213 | H160: 47.87243232 | I160: 44.97584511 | J160: 0 | K160: 0 | V160: 0 | BA160: 2018-05-20 | BB160: 2018-05-20
A161: 2018 | B161: 21/05-21/05 | C161: 4.579471614 | D161: 1.013333333 | E161: 4.640531236 | F161: 0 | G161: -4.640531236 | H161: 44.97584511 | I161: 40.33531388 | J161: 0 | K161: 0 | V161: 0 | BA161: 2018-05-21 | BB161: 2018-05-21
A162: 2018 | B162: 22/05-22/05 | C162: 4.486630439 | D162: 1.026666667 | E162: 4.606273918 | F162: 10.922 | G162: 6.315726082 | H162: 40.33531388 | I162: 46.65103996 | J162: 0 | K162: 0 | V162: 0 | BA162: 2018-05-22 | BB162: 2018-05-22
A163: 2018 | B163: 23/05-23/05 | C163: 4.747597636 | D163: 1.04 | E163: 4.937501541 | F163: 0.254 | G163: -4.683501541 | H163: 46.65103996 | I163: 41.96753842 | J163: 0 | K163: 0 | V163: 0 | BA163: 2018-05-23 | BB163: 2018-05-23
A164: 2018 | B164: 24/05-24/05 | C164: 4.807963707 | D164: 1.053333333 | E164: 5.064388438 | F164: 0 | G164: -5.064388438 | H164: 41.96753842 | I164: 36.90314998 | J164: 0 | K164: 0 | V164: 0 | BA164: 2018-05-24 | BB164: 2018-05-24
A165: 2018 | B165: 25/05-25/05 | C165: 4.315548145 | D165: 1.066666667 | E165: 4.603251355 | F165: 13.97 | G165: 9.366748645 | H165: 36.90314998 | I165: 46.26989862 | J165: 0 | K165: 0 | V165: 0 | BA165: 2018-05-25 | BB165: 2018-05-25
A166: 2018 | B166: 26/05-26/05 | C166: 4.366708853 | D166: 1.08 | E166: 4.716045562 | F166: 10.922 | G166: 6.205954438 | H166: 46.26989862 | I166: 52.47585306 | J166: 0 | K166: 0 | V166: 0 | BA166: 2018-05-26 | BB166: 2018-05-26
A167: =IF(BA167="","",YEAR(BB167)) -> 2018 | B167: =IF(A167="","",TEXT(BA167,"d/mm")&"-"&TEXT(BB167,"d/mm")) -> 27/05-27/05 | C167: 4.71167886 | D167: 1.093333333 | E167: 5.151435554 | F167: 0 | G167: -5.151435554 | H167: 52.47585306 | I167: 47.32441751 | J167: 0 | K167: 0 | V167: 0 | BA167: 2018-05-27 | BB167: 2018-05-27
A168: 2018 | B168: 28/05-28/05 | C168: 4.498334904 | D168: 1.106666667 | E168: 4.978157294 | F168: 1.016 | G168: -3.962157294 | H168: 47.32441751 | I168: 43.36226022 | J168: 0 | K168: 0 | V168: 0 | BA168: 2018-05-28 | BB168: 2018-05-28
A169: 2018 | B169: 29/05-29/05 | C169: 4.257878396 | D169: 1.12 | E169: 4.768823804 | F169: 0 | G169: -4.768823804 | H169: 43.36226022 | I169: 38.59343641 | J169: 0 | K169: 0 | V169: 0 | BA169: 2018-05-29 | BB169: 2018-05-29
A170: 2018 | B170: 30/05-30/05 | C170: 4.025693527 | D170: 1.133333333 | E170: 4.562452664 | F170: 0 | G170: -4.562452664 | H170: 38.59343641 | I170: 34.03098375 | J170: 0 | K170: 0 | V170: 0 | BA170: 2018-05-30 | BB170: 2018-05-30
A171: 2018 | B171: 31/05-31/05 | C171: 4.208670318 | D171: 1.146666667 | E171: 4.825941965 | F171: 0 | G171: -4.825941965 | H171: 34.03098375 | I171: 29.20504178 | J171: 0 | K171: 0 | V171: 0 | BA171: 2018-05-31 | BB171: 2018-05-31
A172: 2018 | B172: 1/06-1/06 | C172: 4.492430562 | D172: 1.16 | E172: 5.211219452 | F172: 0 | G172: -5.211219452 | H172: 29.20504178 | I172: 23.99382233 | J172: 0 | K172: 0 | V172: 0 | BA172: 2018-06-01 | BB172: 2018-06-01
A173: 2018 | B173: 2/06-2/06 | C173: 4.572505826 | D173: 1.173333333 | E173: 5.365073503 | F173: 0 | G173: -5.365073503 | H173: 23.99382233 | I173: 18.62874883 | J173: 0 | K173: 0 | V173: 0 | BA173: 2018-06-02 | BB173: 2018-06-02
A174: 2018 | B174: 3/06-3/06 | C174: 5.040554316 | D174: 1.186666667 | E174: 5.981457788 | F174: 0 | G174: -5.981457788 | H174: 18.62874883 | I174: 12.64729104 | J174: 0 | K174: 0 | V174: 0 | BA174: 2018-06-03 | BB174: 2018-06-03
A175: 2018 | B175: 4/06-4/06 | C175: 4.619859723 | D175: 1.2 | E175: 5.543831668 | F175: 0 | G175: -5.543831668 | H175: 12.64729104 | I175: 7.103459372 | J175: 0 | K175: 0 | V175: 0 | BA175: 2018-06-04 | BB175: 2018-06-04
A176: 2018 | B176: 5/06-5/06 | C176: 4.591993292 | D176: =D175 -> 1.2 | E176: 5.510391951 | F176: 0 | G176: -5.510391951 | H176: 7.103459372 | I176: 1.593067421 | J176: 0 | K176: 0 | V176: 0 | BA176: 2018-06-05 | BB176: 2018-06-05
A177: 2018 | B177: 6/06-6/06 | C177: 4.582811445 | D177: =D176 -> 1.2 | E177: 5.499373734 | F177: 0 | G177: 48.53331355 | H177: 1.593067421 | I177: 50.12638097 | J177: 54.03268728 | K177: 63.56786739 | V177: 0 | BA177: 2018-06-06 | BB177: 2018-06-06
A178: 2018 | B178: 7/06-7/06 | C178: 4.763773155 | D178: 1.2 | E178: 5.716527786 | F178: 0 | G178: -5.716527786 | H178: 50.12638097 | I178: 44.40985318 | J178: 0 | K178: 0 | V178: 0 | BA178: 2018-06-07 | BB178: 2018-06-07
A179: 2018 | B179: 8/06-8/06 | C179: 4.969442505 | D179: 1.2 | E179: 5.963331006 | F179: 0.254 | G179: -5.709331006 | H179: 44.40985318 | I179: 38.70052218 | J179: 0 | K179: 0 | V179: 0 | BA179: 2018-06-08 | BB179: 2018-06-08
A180: 2018 | B180: 9/06-9/06 | C180: 4.703655245 | D180: 1.2 | E180: 5.644386294 | F180: 1.016 | G180: -4.628386294 | H180: 38.70052218 | I180: 34.07213588 | J180: 0 | K180: 0 | V180: 0 | BA180: 2018-06-09 | BB180: 2018-06-09
A181: 2018 | B181: 10/06-10/06 | C181: 4.642334059 | D181: 1.2 | E181: 5.57080087 | F181: 0 | G181: -5.57080087 | H181: 34.07213588 | I181: 28.50133501 | J181: 0 | K181: 0 | V181: 0 | BA181: 2018-06-10 | BB181: 2018-06-10
A182: 2018 | B182: 11/06-11/06 | C182: 4.491314265 | D182: 1.2 | E182: 5.389577118 | F182: 0 | G182: -5.389577118 | H182: 28.50133501 | I182: 23.1117579 | J182: 0 | K182: 0 | V182: 0 | BA182: 2018-06-11 | BB182: 2018-06-11
A183: 2018 | B183: 12/06-12/06 | C183: 4.803129901 | D183: 1.2 | E183: 5.763755882 | F183: 0 | G183: -5.763755882 | H183: 23.1117579 | I183: 17.34800201 | J183: 0 | K183: 0 | V183: 0 | BA183: 2018-06-12 | BB183: 2018-06-12
A184: 2018 | B184: 13/06-13/06 | C184: 5.165656401 | D184: 1.2 | E184: 6.198787681 | F184: 0 | G184: -6.198787681 | H184: 17.34800201 | I184: 11.14921433 | J184: 0 | K184: 0 | V184: 0 | BA184: 2018-06-13 | BB184: 2018-06-13
A185: 2018 | B185: 14/06-14/06 | C185: 5.646154963 | D185: 1.2 | E185: 6.775385955 | F185: 0 | G185: -6.775385955 | H185: 11.14921433 | I185: 4.373828377 | J185: 0 | K185: 0 | V185: 0 | BA185: 2018-06-14 | BB185: 2018-06-14
A186: 2018 | B186: 15/06-15/06 | C186: 5.849922155 | D186: 1.2 | E186: 7.019906585 | F186: 0 | G186: 44.23201974 | H186: 4.373828377 | I186: 48.60584812 | J186: 51.25192633 | K186: 60.29638391 | V186: 0 | BA186: 2018-06-15 | BB186: 2018-06-15
A187: 2018 | B187: 16/06-16/06 | C187: 6.18427985 | D187: 1.2 | E187: 7.42113582 | F187: 0 | G187: -7.42113582 | H187: 48.60584812 | I187: 41.1847123 | J187: 0 | K187: 0 | V187: 0 | BA187: 2018-06-16 | BB187: 2018-06-16
A188: 2018 | B188: 17/06-17/06 | C188: 6.336844004 | D188: 1.2 | E188: 7.604212805 | F188: 0 | G188: -7.604212805 | H188: 41.1847123 | I188: 33.58049949 | J188: 0 | K188: 0 | V188: 0 | BA188: 2018-06-17 | BB188: 2018-06-17
A189: 2018 | B189: 18/06-18/06 | C189: 6.650421461 | D189: 1.2 | E189: 7.980505754 | F189: 0 | G189: -7.980505754 | H189: 33.58049949 | I189: 25.59999374 | J189: 0 | K189: 0 | V189: 0 | BA189: 2018-06-18 | BB189: 2018-06-18
A190: 2018 | B190: 19/06-19/06 | C190: 7.057716762 | D190: 1.2 | E190: 8.469260114 | F190: 1.016 | G190: -7.453260114 | H190: 25.59999374 | I190: 18.14673363 | J190: 0 | K190: 0 | V190: 0 | BA190: 2018-06-19 | BB190: 2018-06-19
A191: 2018 | B191: 20/06-20/06 | C191: 6.530000845 | D191: 1.2 | E191: 7.836001013 | F191: 0 | G191: -7.836001013 | H191: 18.14673363 | I191: 10.31073261 | J191: 0 | K191: 0 | V191: 0 | BA191: 2018-06-20 | BB191: 2018-06-20
A192: 2018 | B192: 21/06-21/06 | C192: 5.907053867 | D192: 1.2 | E192: 7.08846464 | F192: 0 | G192: -7.08846464 | H192: 10.31073261 | I192: 3.222267973 | J192: 0 | K192: 0 | V192: 0 | BA192: 2018-06-21 | BB192: 2018-06-21
A193: 2018 | B193: 22/06-22/06 | C193: 6.259400363 | D193: 1.2 | E193: 7.511280436 | F193: 1.016 | G193: 45.9082063 | H193: 3.222267973 | I193: 49.13047427 | J193: 52.40348673 | K193: 61.65116086 | V193: 0 | BA193: 2018-06-22 | BB193: 2018-06-22
A194: 2018 | B194: 23/06-23/06 | C194: 6.25522206 | D194: 1.2 | E194: 7.506266472 | F194: 0.508 | G194: -6.998266472 | H194: 49.13047427 | I194: 42.1322078 | J194: 0 | K194: 0 | V194: 0 | BA194: 2018-06-23 | BB194: 2018-06-23
A195: 2018 | B195: 24/06-24/06 | C195: 6.587534604 | D195: 1.2 | E195: 7.905041524 | F195: 0 | G195: -7.905041524 | H195: 42.1322078 | I195: 34.22716627 | J195: 0 | K195: 0 | V195: 0 | BA195: 2018-06-24 | BB195: 2018-06-24
A196: 2018 | B196: 25/06-25/06 | C196: 6.38761192 | D196: 1.2 | E196: 7.665134304 | F196: 0 | G196: -7.665134304 | H196: 34.22716627 | I196: 26.56203197 | J196: 0 | K196: 0 | V196: 0 | BA196: 2018-06-25 | BB196: 2018-06-25
A197: 2018 | B197: 26/06-26/06 | C197: 5.50122421 | D197: 1.2 | E197: 6.601469052 | F197: 0 | G197: -6.601469052 | H197: 26.56203197 | I197: 19.96056292 | J197: 0 | K197: 0 | V197: 0 | BA197: 2018-06-26 | BB197: 2018-06-26
A198: 2018 | B198: 27/06-27/06 | C198: 5.873053762 | D198: 1.2 | E198: 7.047664515 | F198: 0 | G198: -7.047664515 | H198: 19.96056292 | I198: 12.9128984 | J198: 0 | K198: 0 | V198: 0 | BA198: 2018-06-27 | BB198: 2018-06-27
A199: 2018 | B199: 28/06-28/06 | C199: 5.71277892 | D199: 1.2 | E199: 6.855334704 | F199: 0 | G199: -6.855334704 | H199: 12.9128984 | I199: 6.057563697 | J199: 0 | K199: 0 | V199: 0 | BA199: 2018-06-28 | BB199: 2018-06-28
A200: 2018 | B200: 29/06-29/06 | C200: 5.732343962 | D200: 1.2 | E200: 6.878812754 | F200: 0 | G200: 42.68937825 | H200: 6.057563697 | I200: 48.74694195 | J200: 49.56819101 | K200: 58.31551883 | V200: 0 | BA200: 2018-06-29 | BB200: 2018-06-29
A201: 2018 | B201: 30/06-30/06 | C201: 5.711350421 | D201: 1.2 | E201: 6.853620505 | F201: 0 | G201: -6.853620505 | H201: 48.74694195 | I201: 41.89332145 | J201: 0 | K201: 0 | V201: 0 | BA201: 2018-06-30 | BB201: 2018-06-30
A202: 2018 | B202: 1/07-1/07 | C202: 5.496719318 | D202: 1.2 | E202: 6.596063181 | F202: 17.018 | G202: 10.42193682 | H202: 41.89332145 | I202: 52.31525826 | J202: 0 | K202: 0 | V202: 0 | BA202: 2018-07-01 | BB202: 2018-07-01
... 230 more rows
